fUST/lending_fUST_20251024
["ID","MTS","AMOUNT","RATE_DAILY","PERIOD"]
[392215771,1761257791421,229.02,0.00019905,30]
[392215772,1761257793824,5000.0,0.00020358,2]
[392215773,1761257809862,171.210547,0.00019897,2]
[392215774,1761257813509,181.915,0.00035951,60]
[392215775,1761257816425,3528.799453,0.00020358,2]
[392215776,1761257816451,1471.200547,0.00020358,2]
[392215777,1761257836514,-500.0,0.00020564,2]
[392215778,1761257836544,-251.20851519,0.00020673,2]
[392215779,1761257836576,-300.0,0.00020772,2]
[392215780,1761257853863,5000.0,0.00020773,2]
[392215781,1761257856852,1200.0,0.00020772,2]
[392215782,1761257859183,150.0,0.00019374,2]
[392215783,1761257859589,150.0,0.00020296,2]
[392215784,1761257863450,150.0,0.00014882,30]
[392215785,1761257863872,150.0,0.0001559,30]
[392215786,1761257864275,150.0,0.00016299,30]
[392215787,1761257864800,150.0,0.00017008,30]
[392215788,1761257865079,150.0,0.00017716,30]
[392215789,1761257865485,150.0,0.00018425,30]
[392215790,1761257933209,150.0,0.00019375,2]
[392215791,1761257933607,150.0,0.00020297,2]
[392215792,1761257936948,775.0,0.00018,2]
[392215793,1761257937072,150.0,0.00014411,30]
[392215794,1761257937512,150.0,0.00015097,30]
[392215795,1761257937977,150.0,0.00015783,30]
[392215796,1761257961881,1000.0,0.00018,2]
[392215797,1761258003531,-5000.0,0.00020565,2]
[392215798,1761258006451,-150.0,0.00019348,2]
[392215799,1761258006489,-150.0,0.00020269,2]
[392215800,1761258006523,-4500.0,0.00020358,2]
[392215801,1761258006556,-34.02758737,0.00020669,2]
[392215802,1761258008827,150.0,0.00012535,30]
[392215803,1761258009430,-331.95482526,0.00020669,2]
[392215804,1761258009463,-167.47234346,0.00020673,2]
[392215805,1761258009497,-175.34672668,0.00020763,2]
[392215806,1761258009529,-1200.0,0.0002077,2]
[392215807,1761258009565,-300.0,0.00020771,2]
[392215808,1761258009599,-247.0,0.00020771,2]
[392215809,1761258009633,-300.0,0.00020771,2]
[392215810,1761258009667,-300.0,0.00020771,2]
[392215811,1761258009702,-234.57076028,0.00020772,2]
[392215812,1761258009735,-500.0,0.00020772,2]
[392215813,1761258009768,-500.0,0.00020772,2]
[392215814,1761258009800,-500.0,0.00020772,2]
[392215816,1761258012444,-634.61579342,0.00020772,2]
[392215817,1761258012478,-500.0,0.00020772,2]
[392215818,1761258012509,-291.41456257,0.00020772,2]
[392215819,1761258012540,-1090.42190192,0.00020772,2]
[392215820,1761258016583,178.86,0.00020763,2]
[392215821,1761258033747,-326.30881527,0.00020763,2]
[392215822,1761258038931,1451.919057,0.00019897,2]
[392215824,1761258062226,300.0,0.00020772,2]
[392215825,1761258075921,150.0,0.00019373,2]
[392215826,1761258076323,150.0,0.00020296,2]
[392215827,1761258078819,150.0,0.00013121,30]
[392215828,1761258122251,300.0,0.00020772,2]
[392215829,1761258146214,150.0,0.00019375,2]
[392215830,1761258146641,150.0,0.00020298,2]
[392215831,1761258156944,320.0,0.00020772,2]
[392215832,1761258159126,2016.99900073,0.00018037,2]
[392215833,1761258159457,2016.99900073,0.00018202,2]
[392215834,1761258159778,2016.99900073,0.00018376,2]
[392215835,1761258160076,324.47631027,0.0001866,2]
[392215836,1761258160102,1692.52269046,0.0001866,2]
[392215837,1761258160407,2016.99900073,0.00018938,2]
[392215838,1761258160719,2016.99900073,0.0001924,2]
[392215839,1761258161012,2016.99900073,0.00019701,2]
[392215840,1761258161325,2016.99900073,0.0001976,2]
[392215841,1761258161765,239.49130662,0.00020194,2]
[392215842,1761258161789,1777.50769411,0.00020194,2]
[392215843,1761258162059,2016.99900073,0.00020302,2]
[392215844,1761258162379,2016.99900075,0.00020559,2]
[392215845,1761258219193,150.0,0.00014466,30]
[392215846,1761258219633,150.0,0.00015155,30]
[392215847,1761258254226,-150.0,0.00019188,2]
[392215848,1761258254314,-150.0,0.00019382,2]
[392215849,1761258254389,-150.0,0.00020305,2]
[392215850,1761258254461,-300.0,0.000206,2]
[392215851,1761258254534,-300.0,0.000206,2]
[392215852,1761258254607,-358.66276438,0.00020686,2]
[392215853,1761258254687,-300.0,0.00020772,2]
[392215854,1761258268063,4850.0,0.00020773,2]
[392215855,1761258269967,196.0,0.00016,2]
[392215856,1761258270048,196.0,0.0001635,2]
[392215857,1761258270259,196.0,0.000167,2]
[392215858,1761258270334,196.0,0.0001705,2]
[392215859,1761258270400,196.0,0.000174,2]
[392215860,1761258270473,196.0,0.0001775,2]
[392215861,1761258270536,328.61836702,0.000181,2]
[392215862,1761258285189,150.0,0.00019395,2]
[392215863,1761258285609,78.06610422,0.00020319,2]
[392215864,1761258285671,71.93389578,0.00020319,2]
[392215865,1761258288437,150.0,0.0001254,30]
[392215866,1761258302093,300.0,0.00020772,2]
[392215867,1761258305042,217.0,0.00020772,2]
[392215873,1761258343907,194.47774016,0.00020673,2]
[392215875,1761258356288,150.0,0.00019356,2]
[392215876,1761258356697,150.0,0.00020277,2]
[392215880,1761258362286,300.0,0.00020772,2]
[392215888,1761258391979,1000.0,0.00035951,120]
[392215890,1761258392859,1000.0,0.00035951,120]
[392215891,1761258393748,1000.0,0.00035951,120]
[392215892,1761258394421,1000.0,0.00035951,120]
[392215894,1761258394942,1000.0,0.00035951,120]
[392215895,1761258395457,1000.0,0.00035951,120]
[392215896,1761258395983,1000.0,0.00035951,120]
[392215897,1761258396470,1000.0,0.00035951,120]
[392215898,1761258396984,1000.0,0.00035951,120]
[392215899,1761258397428,1000.0,0.00035951,120]
[392215904,1761258404098,-268.85816276,0.00020773,2]
[392215912,1761258422254,300.0,0.00020772,2]
[392215913,1761258423424,150.0,0.00019358,2]
[392215914,1761258424340,150.0,0.0002028,2]
[392215917,1761258466893,8016.59836406,0.00018,2]
[392215918,1761258471502,1198.135401,0.00013699,2]
[392215923,1761258485348,-300.0,0.00017999,2]
[392215932,1761258522613,-9338.51430441,0.00018,2]
[392215933,1761258528651,-1594.14060143,0.00018,2]
[392215934,1761258528726,-300.0,0.00018359,2]
[392215935,1761258528801,-300.0,0.00018359,2]
[392215936,1761258528875,-300.0,0.00018359,2]
[392215937,1761258528950,-300.0,0.00018359,2]
[392215938,1761258529025,-300.0,0.00018359,2]
[392215939,1761258529100,-300.0,0.00018359,2]
[392215940,1761258529173,-300.0,0.00018359,2]
[392215941,1761258529249,-300.0,0.00018359,2]
[392215942,1761258529324,-300.0,0.00018359,2]
[392215943,1761258529398,-300.0,0.00018359,2]
[392215944,1761258529473,-300.0,0.00018359,2]
[392215945,1761258530317,-211.72879714,0.0001818,2]
[392216071,1761258632836,-139.76071195,0.0001818,2]
[392216073,1761258632845,-300.0,0.00018359,2]
[392216075,1761258632854,-300.0,0.00018359,2]
[392216077,1761258632864,-300.0,0.00018359,2]
[392216079,1761258632873,-300.0,0.00018359,2]
[392216081,1761258632883,-600.0,0.00018725,2]
[392216083,1761258632892,-150.0,0.00019332,2]
[392216085,1761258632901,-414.75762073,0.0002018,2]
[392216087,1761258632910,-1198.135401,0.00020187,2]
[392216089,1761258632919,-150.0,0.00020253,2]
[392216091,1761258632928,-720.0,0.00020598,2]
[392216092,1761258632937,-954.11916418,0.0002075,2]
[392216094,1761258632948,-300.0,0.00020771,2]
[392216097,1761258632957,-1108.90639341,0.00020773,2]
[392216099,1761258632967,-1000.0,0.00020773,2]
[392216100,1761258632976,-1000.0,0.00020773,2]
[392216102,1761258632985,-1000.0,0.00020773,2]
[392216104,1761258632995,-1008.6548895,0.00020773,2]
[392216105,1761258633004,-231.14183724,0.00020773,2]
[392216106,1761258633013,-500.0,0.00020773,2]
[392216107,1761258633023,-500.0,0.00020773,2]
[392216108,1761258633032,-500.0,0.00020773,2]
[392216109,1761258633041,-233.58518303,0.00020773,2]
[392216110,1761258633050,-500.0,0.00020773,2]
[392216111,1761258633059,-502.20619396,0.00020773,2]
[392216112,1761258633069,-500.0,0.00020773,2]
[392216113,1761258633078,-500.0,0.00020773,2]
[392216114,1761258633087,-500.0,0.00020773,2]
[392216116,1761258633097,-262.25602675,0.00020773,2]
[392216117,1761258633106,-30941.77418858,0.00020773,2]
[392216118,1761258633117,-4497.5762867,0.00020773,2]
[392216119,1761258633147,-1726.5,0.00020773,2]
[392216120,1761258633259,-1481.82619142,0.00020773,2]
[392216121,1761258633271,-1642.46047885,0.00020773,2]
[392216122,1761258633422,-13541.67109474,0.00020773,2]
[392216123,1761258633432,-1616.61,0.0002085,10]
[392216124,1761258633441,-1347.18,0.0002085,10]
[392216125,1761258633455,-1122.65,0.0002085,10]
[392216126,1761258633464,-935.54,0.0002085,10]
[392216127,1761258633474,-258.17723108,0.00020859,2]
[392216128,1761258633484,-505.6684327,0.00020859,2]
[392216129,1761258633494,-500.0,0.00020873,2]
[392216130,1761258633503,-500.0,0.00020873,2]
[392216131,1761258633514,-253.73262866,0.000209,2]
[392216132,1761258633525,-331.04545041,0.00021072,2]
[392216133,1761258633534,-388.20832348,0.00021189,2]
[392216134,1761258633544,-150.0,0.00021219,2]
[392216135,1761258633554,-500.0,0.00021272,2]
[392216136,1761258633563,-500.0,0.00021273,2]
[392216137,1761258633572,-500.0,0.00021273,2]
[392216138,1761258633582,-500.0,0.00021321,2]
[392216139,1761258633591,-500.0,0.00021321,2]
[392216140,1761258633600,-1000.0,0.00021321,2]
[392216141,1761258633609,-500.0,0.00021321,2]
[392216142,1761258633618,-500.0,0.00021321,2]
[392216143,1761258633628,-377.95931996,0.00021444,2]
[392216144,1761258633637,-269.0,0.00021704,2]
[392216145,1761258633648,-269.0,0.00021745,2]
[392216146,1761258633658,-269.0,0.00021816,2]
[392216147,1761258633668,-1000.0,0.00021821,2]
[392216148,1761258633678,-250.0,0.00021898,2]
[392216149,1761258633687,-223.678545,0.00021918,2]
[392216150,1761258633697,-269.0,0.00021929,2]
[392216151,1761258633707,-392.72,0.0002199,3]
[392216152,1761258633717,-196.36,0.0002199,3]
[392216153,1761258633726,-589.11,0.0002199,3]
[392216154,1761258633735,-646.87,0.0002199,3]
[392216155,1761258633745,-23913.17,0.00022,7]
[392216156,1761258633754,-181.0,0.00022,2]
[392216157,1761258633763,-150.0,0.00022142,2]
[392216158,1761258633773,-223.678545,0.00022154,2]
[392216159,1761258633783,-168.0,0.00022169,2]
[392216160,1761258633793,-478.02573236,0.0002218,2]
[392216161,1761258633803,-151.0,0.00022302,2]
[392216162,1761258633812,-151.0,0.00022302,2]
[392216163,1761258633823,-176.28428908,0.00022302,2]
[392216164,1761258633833,-151.0,0.00022302,2]
[392216165,1761258633842,-159.083756,0.00022302,2]
[392216166,1761258633851,-151.0,0.00022302,2]
[392216167,1761258633861,-151.0,0.00022302,2]
[392216168,1761258633871,-151.0,0.00022357,2]
[392216169,1761258633881,-1047.10177099,0.00022368,2]
[392216170,1761258633890,-223.678545,0.00022391,2]
[392216171,1761258633900,-160.0,0.000224,2]
[392216172,1761258633909,-166.48556739,0.00022412,2]
[392216173,1761258633918,-151.24323,0.00022524,2]
[392216174,1761258633928,-269.0,0.00022584,2]
[392216175,1761258633937,-420.0,0.00022599,2]
[392216176,1761258633947,-4208.0,0.00022618,2]
[392216177,1761258633957,-223.678545,0.00022627,2]
[392216178,1761258633967,-269.0,0.00022644,2]
[392216179,1761258633978,-864.0,0.00022657,20]
[392216180,1761258633987,-983.0,0.00022685,2]
[392216181,1761258633997,-632.0,0.00022685,2]
[392216182,1761258634006,-2165.0,0.00022685,2]
[392216183,1761258634016,-411.0,0.00022685,2]
[392216184,1761258634026,-223.678545,0.00022864,2]
[392216185,1761258634036,-2233.11633717,0.00022869,2]
[392216186,1761258634046,-269.0,0.0002287,2]
[392216187,1761258634055,-260.0,0.00022948,2]
[392216188,1761258634066,-168.0,0.00022969,2]
[392216189,1761258634075,-212.14037,0.00023,5]
[392216190,1761258634085,-269.0,0.00023056,2]
[392216191,1761258634094,-150.0,0.0002309,2]
[392216192,1761258634104,-223.678545,0.000231,2]
[392216193,1761258634113,-212.14037,0.00023111,20]
[392216194,1761258634123,-269.0,0.00023256,2]
[392216195,1761258634132,-500.0,0.00023287,2]
[392216196,1761258634141,-269.0,0.00023295,2]
[392216197,1761258634151,-269.0,0.00023299,2]
[392216198,1761258634161,-269.0,0.00023301,2]
[392216199,1761258634171,-223.678545,0.00023337,2]
[392216200,1761258634181,-2233.11633717,0.0002336,2]
[392216201,1761258634191,-269.0,0.0002336,2]
[392216202,1761258634201,-785.44,0.0002336,3]
[392216203,1761258634211,-392.72,0.0002336,3]
[392216204,1761258634220,-212.14037,0.00023463,2]
[392216205,1761258634230,-360.0,0.00023496,2]
[392216206,1761258634239,-223.678545,0.00023573,2]
[392216207,1761258634249,-212.14037,0.00023629,20]
[392216208,1761258634259,-154.729244,0.00023629,20]
[392216209,1761258634268,-223.678545,0.0002381,2]
[392216210,1761258634277,-212.14037,0.00023848,28]
[392216211,1761258634287,-212.14037,0.00023848,28]
[392216212,1761258634296,-212.14037,0.00023848,28]
[392216213,1761258634305,-212.14037,0.00023848,28]
[392216214,1761258634314,-212.14037,0.00023848,28]
[392216215,1761258634323,-154.729244,0.00023848,28]
[392216216,1761258634333,-154.729244,0.00023848,28]
[392216217,1761258634342,-154.729244,0.00023848,28]
[392216218,1761258634351,-154.729244,0.00023848,28]
[392216219,1761258634361,-2233.11633717,0.00023851,2]
[392216220,1761258634370,-224.0,0.00023916,2]
[392216221,1761258634379,-34549.50946433,0.0002399,2]
[392216222,1761258634389,-150.0,0.00024013,2]
[392216223,1761258634398,-460.0,0.00024044,2]
[392216224,1761258634407,-223.678545,0.00024046,2]
[392216225,1761258634416,-839.27444307,0.00024097,2]
[392216226,1761258634425,-500.0,0.000241,2]
[392216227,1761258634435,-212.14037,0.00024147,20]
[392216228,1761258634445,-154.729244,0.00024147,20]
[392216229,1761258634457,-212.14037,0.00024158,5]
[392216230,1761258634466,-154.729244,0.00024158,5]
[392216231,1761258634476,-541.293844,0.0002418,2]
[392216232,1761258634485,-954.11916418,0.00024268,2]
[392216233,1761258634495,-223.678545,0.00024283,2]
[392216234,1761258634504,-212.14037,0.00024295,2]
[392216235,1761258634514,-154.729244,0.00024295,2]
[392216236,1761258634523,-168.0,0.00024316,2]
[392216237,1761258634532,-2233.11633717,0.00024341,2]
[392216238,1761258634542,-224.0,0.00024346,2]
[392216239,1761258634551,-224.0,0.00024373,2]
[392216240,1761258634561,-224.0,0.00024411,2]
[392216241,1761258634570,-171.210547,0.00024463,2]
[392216242,1761258634579,-155.0,0.00024514,2]
[392216243,1761258634589,-155.0,0.00024514,2]
[392216244,1761258634598,-155.0,0.00024514,2]
[392216245,1761258634608,-165.0,0.00024515,2]
[392216246,1761258634617,-223.678545,0.00024519,2]
[392216247,1761258634627,-500.0,0.00024546,2]
[392216248,1761258634636,-224.0,0.00024571,2]
[392216249,1761258634645,-224.0,0.00024576,2]
[392216250,1761258634654,-587.0,0.00024589,2]
[392216251,1761258634664,-560.0,0.00024592,2]
[392216252,1761258634754,-241.64414156,0.00024602,2]
[392216253,1761258634764,-5000.0,0.00024603,2]
[392216254,1761258634774,-505.13968445,0.00024648,2]
[392216255,1761258634784,-582.0,0.00024658,2]
[392216256,1761258634794,-212.14037,0.00024665,20]
[392216257,1761258634803,-154.729244,0.00024665,20]
[392216258,1761258634813,-582.0,0.00024713,2]
[392216259,1761258634822,-20162.54742369,0.00024719,2]
[392216260,1761258634832,-223.678545,0.00024756,2]
[392216261,1761258634841,-582.0,0.00024768,2]
[392216262,1761258634850,-458.34864445,0.00024773,2]
[392216263,1761258634860,-500.0,0.00024773,2]
[392216264,1761258634869,-500.0,0.00024773,2]
[392216265,1761258634879,-500.0,0.00024773,2]
[392216266,1761258634889,-500.0,0.00024773,2]
[392216267,1761258634898,-151.0,0.000248,2]
[392216268,1761258634907,-11448.10685722,0.000248,2]
[392216270,1761258638493,-213.55964899,0.00020772,2]
[392216271,1761258638503,-500.0,0.00020772,2]
[392216272,1761258638513,-92.79576384,0.00020772,2]
[392216273,1761258638609,-492.96194151,0.00020772,2]
[392216274,1761258638619,-366.07805849,0.00020772,2]
[392216284,1761258640620,-133.92194151,0.00020772,2]
[392216285,1761258640630,-134.54381064,0.00020772,2]
[392216291,1761258643802,-365.45618936,0.00020772,2]
[392216293,1761258643821,-500.0,0.00020772,2]
[392216294,1761258643833,-500.0,0.00020772,2]
[392216295,1761258643843,-536.49313118,0.00020772,2]
[392216297,1761258643853,-399.5726063,0.00020772,2]
[392216299,1761258643863,-526.52227939,0.00020772,2]
[392216301,1761258643873,-500.0,0.00024658,2]
[392216303,1761258643882,-500.0,0.00024658,2]
[392216304,1761258643892,-500.0,0.00024658,2]
[392216305,1761258643901,-500.0,0.00024658,2]
[392216306,1761258643910,-500.0,0.00024658,2]
[392216307,1761258643920,-500.0,0.00024658,2]
[392216308,1761258643930,-542.86242956,0.00024658,2]
[392216309,1761258643939,-6271.59265446,0.000248,2]
[392216315,1761258670896,-256.86104315,0.00020772,2]
[392216316,1761258670979,-188.25914454,0.00020772,2]
[392216317,1761258671057,-331.16071599,0.00020772,2]
[392216318,1761258671131,-397.53729942,0.00020772,2]
[392216319,1761258672794,300.0,0.000182,2]
[392216320,1761258683545,300.0,0.000182,2]
[392216321,1761258684240,150.0,0.00020162,2]
[392216322,1761258693554,300.0,0.000182,2]
[392216323,1761258705018,-500.0,0.00020773,2]
[392216324,1761258734346,454.27289081,0.00020669,4]
[392216325,1761258749790,196.0,0.00016,2]
[392216326,1761258749887,196.0,0.00016191,2]
[392216327,1761258749976,196.0,0.00016382,2]
[392216328,1761258750066,196.0,0.00016573,2]
[392216329,1761258754379,150.0,0.00019316,2]
[392216330,1761258754464,196.0,0.00016764,2]
[392216331,1761258754570,196.0,0.00016955,2]
[392216332,1761258754659,196.0,0.00017145,2]
[392216333,1761258754751,196.0,0.00017336,2]
[392216334,1761258754837,196.0,0.00017527,2]
[392216335,1761258754935,150.0,0.00020236,2]
[392216336,1761258755159,196.0,0.00017718,2]
[392216337,1761258755248,196.0,0.00017909,2]
[392216338,1761258755342,336.02141835,0.000181,2]
[392216339,1761258771565,2438.27610088,0.00020773,2]
[392216340,1761258780007,3315.43958996,0.0002075,2]
[392216341,1761258780101,10000.01,0.0002075,2]
[392216342,1761258780194,10000.01,0.0002075,2]
[392216343,1761258780272,10000.01,0.0002075,2]
[392216344,1761258792543,-1092.28,0.0002074,10]
[392216345,1761258795545,-1423.81,0.0002074,10]
[392216346,1761258798305,-274.44,0.0002074,3]
[392216347,1761258801356,-4368.95,0.0002075,2]
[392216348,1761258804351,-10000.01,0.0002075,2]
[392216349,1761258807385,-1186.51,0.0002074,10]
[392216350,1761258807507,-7626.99,0.0002075,2]
[392216351,1761258842867,-150.0,0.00019301,2]
[392216352,1761258842949,-339.24666835,0.00020544,2]
[392216353,1761258843035,-280.94,0.0002074,3]
[392216354,1761258843117,-292.19,0.0002074,3]
[392216355,1761258843198,-1451.77,0.0002074,10]
[392216356,1761258843288,-876.59,0.0002074,3]
[392216357,1761258843375,-1209.8,0.0002074,10]
[392216358,1761258843788,-300.0,0.00020749,2]
[392216359,1761258844021,-498.9366633,0.0002075,2]
[392216360,1761258844141,-300.0,0.0002075,2]
[392216361,1761258844209,-9400.01,0.0002075,2]
[392216362,1761258844298,-10000.01,0.0002075,2]
[392216363,1761258844367,-10000.01,0.0002075,2]
[392216364,1761258844457,-10000.01,0.0002075,2]
[392216365,1761258844546,-10000.01,0.0002075,2]
[392216366,1761258844616,-10000.01,0.0002075,2]
[392216367,1761258844704,-10000.01,0.0002075,2]
[392216368,1761258845047,-10000.01,0.0002075,2]
[392216369,1761258845591,-10000.01,0.0002075,2]
[392216370,1761258845781,-10000.01,0.0002075,2]
[392216371,1761258855743,-300.0,0.000205,2]
[392216372,1761258855819,-1160.05,0.0002074,10]
[392216373,1761258856006,-7079.91,0.0002075,2]
[392216374,1761258856066,-10000.01,0.0002075,2]
[392216375,1761258858633,-10000.01,0.0002075,2]
[392216376,1761258861917,-327.15728821,0.0002062,2]
[392216377,1761258862052,-9345.69542358,0.0002075,2]
[392216378,1761258862207,-10000.01,0.0002075,2]
[392216379,1761258862438,-10000.01,0.0002075,2]
[392216380,1761258862604,-10000.01,0.0002075,2]
[392216381,1761258862829,-10000.01,0.0002075,2]
[392216382,1761258863048,-10000.01,0.0002075,2]
[392216383,1761258863286,-10000.01,0.0002075,2]
[392216384,1761258863479,-10000.01,0.0002075,2]
[392216385,1761258863685,-10000.01,0.0002075,2]
[392216386,1761258864711,-10000.01,0.0002075,2]
[392216387,1761258867723,-10000.01,0.0002075,2]
[392216388,1761258867986,-10000.01,0.0002075,2]
[392216389,1761258868202,-10000.01,0.0002075,2]
[392216390,1761258868435,-10000.01,0.0002075,2]
[392216391,1761258868670,-10000.01,0.0002075,2]
[392216392,1761258868881,-10000.01,0.0002075,2]
[392216393,1761258869099,-10000.01,0.0002075,2]
[392216394,1761258869335,-10000.01,0.0002075,2]
[392216395,1761258869575,-1936.26167684,0.0002075,2]
[392216396,1761258869642,-6127.48664632,0.0002075,2]
[392216397,1761258870891,-196.0,0.00016,2]
[392216398,1761258870967,-196.0,0.0001705,2]
[392216399,1761258871038,-379.33954248,0.000181,2]
[392216400,1761258871109,-715.58937317,0.00020772,2]
[392216401,1761258871179,-3458.87212605,0.00020773,2]
[392216402,1761258881902,108.4079166,0.00020773,2]
[392216403,1761258881975,4891.5920834,0.00020773,2]
[392216404,1761258884129,150.0,0.00019295,2]
[392216405,1761258884563,150.0,0.00020214,2]
[392216406,1761258890790,4104.51405037,0.00020773,2]
[392216407,1761258906678,5000.0,0.00020773,2]
[392216408,1761258928913,895.49594963,0.00020773,2]
[392216409,1761258928989,4104.50405037,0.00020773,2]
[392216410,1761258932812,5000.0,0.0002027,2]
[392216411,1761258950398,150.0,0.00019276,2]
[392216412,1761258950802,150.0,0.00020194,2]
[392216413,1761258956677,595.50594963,0.00020773,2]
[392216414,1761258956756,4404.49405037,0.00020773,2]
[392216416,1761258976216,197.60698899,0.00020531,2]
[392216417,1761258989850,196.0,0.00016,2]
[392216418,1761258989930,196.0,0.00016038,2]
[392216419,1761258990012,196.0,0.00016076,2]
[392216420,1761258990116,196.0,0.00016115,2]
[392216421,1761258990215,196.0,0.00016153,2]
[392216422,1761258990298,196.0,0.00016191,2]
[392216423,1761258990379,196.0,0.00016229,2]
[392216424,1761258990455,196.0,0.00016267,2]
[392216425,1761258990532,196.0,0.00016305,2]
[392216426,1761258990603,196.0,0.00016344,2]
[392216427,1761258990679,196.0,0.00016382,2]
[392216428,1761258990755,196.0,0.0001642,2]
[392216429,1761258990829,196.0,0.00016458,2]
[392216430,1761258990903,196.0,0.00016496,2]
[392216431,1761258990987,196.0,0.00016535,2]
[392216432,1761258991070,196.0,0.00016573,2]
[392216433,1761258991145,196.0,0.00016611,2]
[392216434,1761258991219,196.0,0.00016649,2]
[392216435,1761258991296,196.0,0.00016687,2]
[392216436,1761258991378,196.0,0.00016725,2]
[392216437,1761258991458,196.0,0.00016764,2]
[392216438,1761258991530,196.0,0.00016802,2]
[392216439,1761258991635,196.0,0.0001684,2]
[392216440,1761258991715,196.0,0.00016878,2]
[392216441,1761258991797,196.0,0.00016916,2]
[392216442,1761258991986,196.0,0.00016955,2]
[392216443,1761258992082,196.0,0.00016993,2]
[392216444,1761258992169,105.90896064,0.00017031,2]
[392216445,1761258992249,90.09103936,0.00017031,2]
[392216446,1761258992336,196.0,0.00017069,2]
[392216447,1761258993887,196.0,0.00017107,2]
[392216448,1761258993968,196.0,0.00017145,2]
[392216449,1761258994057,196.0,0.00017184,2]
[392216450,1761258994136,196.0,0.00017222,2]
[392216451,1761258994217,196.0,0.0001726,2]
[392216452,1761258994297,196.0,0.00017298,2]
[392216453,1761258994377,196.0,0.00017336,2]
[392216454,1761258994453,196.0,0.00017375,2]
[392216455,1761258994528,196.0,0.00017413,2]
[392216456,1761258994605,196.0,0.00017451,2]
[392216457,1761258994684,196.0,0.00017489,2]
[392216458,1761258994762,196.0,0.00017527,2]
[392216459,1761258994845,196.0,0.00017565,2]
[392216460,1761258994927,196.0,0.00017604,2]
[392216461,1761258995008,196.0,0.00017642,2]
[392216462,1761258995090,196.0,0.0001768,2]
[392216463,1761258995173,196.0,0.00017718,2]
[392216464,1761258995258,196.0,0.00017756,2]
[392216465,1761258995340,196.0,0.00017795,2]
[392216466,1761258995424,196.0,0.00017833,2]
[392216467,1761258995522,196.0,0.00017871,2]
[392216468,1761258995609,196.0,0.00017909,2]
[392216469,1761258995691,196.0,0.00017947,2]
[392216470,1761258995772,196.0,0.00017985,2]
[392216471,1761258995854,196.0,0.00018024,2]
[392216472,1761258995950,196.0,0.00018062,2]
[392216473,1761258996033,215.63889643,0.000181,2]
[392216474,1761259015379,150.0,0.00019268,2]
[392216475,1761259015775,-249.0,0.0002087,2]
[392216476,1761259015844,-1200.0,0.0002087,2]
[392216477,1761259015917,-300.0,0.0002087,2]
[392216478,1761259016110,-500.0,0.00020871,2]
[392216479,1761259016202,-500.0,0.00020871,2]
[392216480,1761259016280,-500.0,0.00020871,2]
[392216481,1761259016350,-500.0,0.00020871,2]
[392216482,1761259016416,-500.0,0.00020871,2]
[392216483,1761259016488,-500.0,0.00020871,2]